bitfinex/quotes_SOLUSD_20220103
["timestamp","ask_amount","ask_price","bid_price","bid_amount"]
[1641182403463,9.1831,172.78,172.71,3.28325821]
[1641182404066,9.1831,172.78,172.7,1.3536]
[1641182404765,10.4386,172.78,172.7,1.3536]
[1641182405464,10.4386,172.78,172.7,1.6136]
[1641182405863,10.4386,172.78,172.7,1.3536]
[1641182406064,8.1,172.77,172.7,1.3536]
[1641182406464,8.1,172.77,172.68,1.2666]
[1641182406465,8.6857,172.74,172.68,1.2666]
[1641182406670,8.6857,172.74,172.67,11.96875821]
[1641182407066,8.6857,172.74,172.67,3.28325821]
[1641182407266,8.6857,172.74,172.66,7.12514166]
[1641182407565,8.6857,172.74,172.66,4.57705821]
[1641182407968,9.1857,172.74,172.66,4.57705821]
[1641182408166,9.1857,172.74,172.66,3.28325821]
[1641182408866,9.1857,172.74,172.64,3.0298206]
[1641182409669,10.5176,172.74,172.64,3.0298206]
[1641182410069,10.5176,172.74,172.62,11.97115821]
[1641182410270,10.5176,172.74,172.62,3.28325821]
[1641182410495,10.7776,172.74,172.62,3.28325821]
[1641182410668,10.5176,172.74,172.62,3.28325821]
[1641182411068,10.5176,172.74,172.62,6.24099086]
[1641182411270,10.7776,172.74,172.62,6.24099086]
[1641182411670,10.5176,172.74,172.62,6.24099086]
[1641182411871,8.1,172.73,172.62,2.95773265]
[1641182412070,8.36,172.73,172.62,2.95773265]
[1641182412269,8.6894,172.68,172.62,2.95773265]
[1641182412469,9.1894,172.68,172.62,2.95773265]
[1641182412870,8.6894,172.68,172.62,2.95773265]
[1641182414478,8.6894,172.68,172.62,3.21773265]
[1641182414773,8.6877,172.69,172.62,3.21773265]
[1641182414972,8.1,172.73,172.62,3.21773265]
[1641182415374,8.1,172.73,172.62,15.18889086]
[1641182415375,8.6,172.73,172.62,15.18889086]
[1641182415673,37.5594,172.73,172.62,15.18889086]
[1641182416573,8.6882,172.68,172.62,3.28325821]
[1641182416975,9.1882,172.68,172.62,3.28325821]
[1641182417179,8.6882,172.68,172.61,4.51695821]
[1641182417476,9.1882,172.68,172.61,4.51695821]
[1641182417673,9.1882,172.68,172.61,6.8384978]
[1641182418100,9.1882,172.68,172.61,3.55523959]
[1641182418802,11.521595,172.68,172.61,1.2337]
[1641182419003,11.521595,172.68,172.6,3.28325821]
[1641182419703,11.781595,172.68,172.6,3.28325821]
[1641182420303,8.1,172.67,172.6,3.28325821]
[1641182420504,8.6918,172.64,172.58,6.00534378]
[1641182421104,8.6918,172.64,172.58,2.72208557]
[1641182421305,17.2918,172.64,172.57,3.28325821]
[1641182421605,17.2918,172.64,172.54,4.93893566]
[1641182421806,17.5518,172.64,172.54,4.93893566]
[1641182422107,18.97849368,172.64,172.54,4.93893566]
[1641182422505,18.97849368,172.64,172.53,2.60617565]
[1641182422704,94.14149368,172.64,172.53,2.60617565]
[1641182423705,94.14149368,172.64,172.48,1.288]
[1641182423904,94.14149368,172.64,172.47,34.66307994]
[1641182424105,94.14149368,172.64,172.45,8.7997]
[1641182424506,94.14149368,172.64,172.43,2.5786]
[1641182424706,8.6963,172.53,172.44,2.67232311]
[1641182426109,9.1963,172.53,172.44,2.67232311]
[1641182426308,17.2963,172.53,172.44,2.67232311]
[1641182426508,17.2963,172.53,172.44,2.93232311]
[1641182426708,9.1963,172.53,172.44,2.93232311]
[1641182427008,8.6963,172.53,172.44,2.93232311]
[1641182427809,8.6952,172.55,172.44,2.93232311]
[1641182428009,8.6952,172.55,172.44,7.56432311]
[1641182428411,8.6952,172.55,172.47,3.28325821]
[1641182428611,8.6952,172.55,172.47,3.54325821]
[1641182428814,8.6952,172.55,172.48,8.6948]
[1641182429013,8.6952,172.55,172.48,8.9548]
[1641182429615,8.6952,172.55,172.49,25.00609565]
[1641182429819,78.7488,172.57,172.49,33.70079565]
[1641182430017,78.7488,172.57,172.5,2.5800032]
[1641182430415,78.7488,172.57,172.5,2.8400032]
[1641182430618,78.9886,172.58,172.5,6.12326141]
[1641182431418,87.6822,172.58,172.51,8.6934]
[1641182431720,87.6822,172.58,172.51,8.9534]
[1641182432320,87.6822,172.58,172.51,0.26]
[1641182432522,88.1822,172.58,172.5,6.12326141]
[1641182432920,88.1822,172.58,172.5,2.8400032]
[1641182433321,88.1822,172.58,172.5,0.26]
[1641182433523,88.1822,172.58,172.48,29.92887725]
[1641182433821,88.1822,172.58,172.49,3.28325821]
[1641182434022,8.1,172.57,172.49,3.54325821]
[1641182434222,8.1,172.57,172.49,5.96954859]
[1641182434421,8.6953,172.54,172.49,5.96954859]
[1641182434621,8.6953,172.54,172.49,0.26]
[1641182435024,8.6953,172.54,172.48,12.23845821]
[1641182435825,8.6953,172.54,172.48,14.90132859]
[1641182436623,8.6947,172.55,172.48,14.90132859]
[1641182436925,79.4886,172.58,172.48,14.90132859]
[1641182437725,8.6948,172.55,172.49,11.97775821]
[1641182438125,8.6948,172.55,172.49,12.23775821]
[1641182439225,8.6948,172.55,172.49,8.9545]
[1641182440530,8.6948,172.55,172.49,12.23775821]
[1641182441228,8.6948,172.55,172.49,8.9545]
[1641182442629,8.6948,172.55,172.49,12.23775821]
[1641182443929,8.6948,172.55,172.49,8.9545]
[1641182449634,8.6948,172.55,172.49,37.6391221]
[1641182449835,78.9886,172.58,172.49,37.6391221]
[1641182451239,78.9886,172.58,172.49,8.6945]
[1641182451439,87.6818,172.58,172.49,8.6945]
[1641182451637,87.6818,172.58,172.5,3.28325821]
[1641182452271,95.7818,172.58,172.5,3.28325821]
[1641182452470,95.7818,172.58,172.49,8.6945]
[1641182452674,95.7818,172.58,172.5,0.26]
[1641182452882,96.2818,172.58,172.49,8.9545]
[1641182454474,96.2818,172.58,172.49,0.26]
[1641182454673,96.2818,172.58,172.48,11.61817038]
[1641182455974,95.7818,172.58,172.48,11.61817038]
[1641182456174,87.6818,172.58,172.48,14.90142859]
[1641182456976,87.6818,172.58,172.48,23.00142859]
[1641182457777,87.6818,172.58,172.49,3.28325821]
[1641182457979,87.6818,172.58,172.5,8.694]
[1641182458376,87.6818,172.58,172.5,8.954]
[1641182460582,8.6932,172.58,172.5,8.954]
[1641182460880,8.6932,172.58,172.5,33.51202392]
[1641182466196,79.0423,172.61,172.5,33.51202392]
[1641182466393,77.8131,172.61,172.5,33.51202392]
[1641182467393,8.6923,172.6,172.5,33.51202392]
[1641182467597,8.6923,172.6,172.51,3.28325821]
[1641182467794,8.6923,172.6,172.54,2.31542617]
[1641182467995,8.6923,172.6,172.54,2.57542617]
[1641182468795,8.6923,172.6,172.54,11.26772617]
[1641182481229,8.6923,172.6,172.54,8.9523]
[1641182483431,8.6923,172.6,172.54,0.26]
[1641182483932,8.6923,172.6,172.53,8.9527]
[1641182484131,8.6923,172.6,172.53,8.6927]
[1641182484338,8.6923,172.6,172.49,3.28325821]
[1641182484534,9.1923,172.6,172.49,3.28325821]
[1641182484736,9.1923,172.6,172.5,3.28325821]
[1641182484936,8.6942,172.57,172.5,3.28325821]
[1641182485136,8.6942,172.57,172.5,5.92334624]
[1641182485337,8.6942,172.57,172.5,2.64008803]
[1641182485636,8.6942,172.57,172.5,2.90008803]
[1641182486439,8.6942,172.57,172.5,11.59428803]
[1641182494974,8.6942,172.57,172.5,11.33428803]
[1641182495674,8.6942,172.57,172.5,8.6942]
[1641182495872,8.6942,172.57,172.46,3.28325821]
[1641182496073,9.1942,172.57,172.48,8.6948]
[1641182496275,9.1942,172.57,172.47,3.28325821]
[1641182496973,1.2663,172.56,172.47,3.28325821]
[1641182497173,8.6962,172.52,172.46,11.49015505]
[1641182498976,8.6962,172.52,172.46,11.75015505]
[1641182502786,8.6962,172.52,172.46,3.05435505]
[1641182504484,8.6957,172.53,172.46,11.75035505]
[1641182510595,8.6957,172.53,172.46,3.05435505]
[1641182511491,8.6957,172.53,172.46,2.79435505]
[1641182512891,8.6957,172.53,172.46,3.05435505]
[1641182515794,9.1957,172.53,172.46,3.05435505]
[1641182516197,8.6957,172.53,172.46,3.05435505]
[1641182516596,9.1957,172.53,172.46,3.05435505]
[1641182518400,8.6957,172.53,172.46,3.05435505]
[1641182518600,8.6957,172.53,172.46,0.26]
[1641182518801,8.6957,172.53,172.44,8.9571]
[1641182519703,8.6957,172.53,172.44,11.40919128]
[1641182519902,9.1957,172.53,172.44,11.40919128]
[1641182520103,8.6974,172.5,172.44,11.40919128]
[1641182523328,8.6966,172.51,172.44,11.40919128]
[1641182524532,78.8502,172.54,172.44,11.40919128]
[1641182524728,78.8502,172.54,172.45,8.1]
[1641182524928,78.8502,172.54,172.49,8.6944]
[1641182525128,74.2433,172.55,172.5,2.66159014]
[1641182525628,78.3915,172.6,172.5,2.92159014]
[1641182525629,8.694,172.57,172.5,2.92159014]
[1641182527330,8.694,172.57,172.5,8.6938]
[1641182527530,8.694,172.57,172.49,1.3429]
[1641182527931,9.194,172.57,172.47,3.28325821]
[1641182528532,9.194,172.57,172.47,5.9077017]
[1641182528933,9.194,172.57,172.47,2.62444349]
[1641182529132,9.194,172.57,172.47,2.88444349]
[1641182529332,8.6955,172.54,172.47,11.57974349]
[1641182529734,8.6955,172.54,172.47,11.31974349]
[1641182531135,8.6955,172.54,172.47,11.57974349]
[1641182531335,1.308,172.56,172.47,11.57974349]
[1641182531537,1.308,172.56,172.47,18.01474349]
[1641182532636,1.308,172.56,172.48,1.3309]
[1641182532839,10.0022,172.56,172.49,8.6946]
[1641182533037,10.0022,172.56,172.49,8.9546]
[1641182533440,10.0022,172.56,172.49,8.6946]
[1641182533637,10.0022,172.56,172.47,2.62444349]
[1641182533838,10.5022,172.56,172.47,2.62444349]
[1641182534840,10.5022,172.56,172.47,2.88444349]
[1641182535845,10.5022,172.56,172.47,11.58014349]
[1641182537643,10.5022,172.56,172.47,11.32014349]
[1641182538047,10.5022,172.56,172.47,2.62444349]
[1641182539048,10.5022,172.56,172.47,2.88444349]
[1641182539248,10.0022,172.56,172.47,2.88444349]
[1641182539648,12.835595,172.56,172.47,2.88444349]
[1641182541552,20.935595,172.56,172.47,2.88444349]
[1641182543457,12.835595,172.56,172.47,2.88444349]
[1641182543653,8.1,172.55,172.47,2.88444349]
[1641182543855,8.6966,172.51,172.47,2.88444349]
[1641182551868,8.1966,172.51,172.47,2.88444349]
[1641182553170,8.1966,172.51,172.47,0.26]
[1641182553368,8.1966,172.51,172.42,4.60295821]
[1641182553569,8.1966,172.51,172.42,3.28325821]
[1641182553769,8.1,172.5,172.37,3.28002278]
[1641182553970,8.7013,172.44,172.37,3.28002278]
[1641182554372,9.2013,172.44,172.37,3.28002278]
[1641182554570,9.2013,172.44,172.35,2.270359]
[1641182555472,9.2013,172.44,172.35,2.530359]
[1641182555873,11.534695,172.44,172.35,0.26]
[1641182556073,11.534695,172.44,172.32,26.58888328]
[1641182556475,8.1,172.43,172.32,35.29168328]
[1641182556674,8.7032,172.39,172.32,26.32888328]
[1641182557296,8.7032,172.39,172.31,2.50399912]
[1641182557297,8.7032,172.39,172.3,5.57409406]
[1641182557894,9.2032,172.39,172.3,5.57409406]
[1641182559497,9.2032,172.39,172.3,5.83409406]
[1641182560497,17.3032,172.39,172.3,5.83409406]
[1641182561900,16.8032,172.39,172.3,5.83409406]
[1641182563399,16.8032,172.39,172.3,14.53789406]
[1641182563599,8.7032,172.39,172.3,14.53789406]
[1641182566112,9.2032,172.39,172.3,14.53789406]
[1641182566307,8.7032,172.39,172.3,14.53789406]
[1641182570113,8.7032,172.39,172.3,20.16289406]
[1641182571014,8.7032,172.39,172.31,0.2829]
[1641182571214,8.7032,172.39,172.31,8.9861]
[1641182571412,8.7032,172.39,172.31,9.2461]
[1641182572414,9.2032,172.39,172.31,9.2461]
[1641182572615,8.7032,172.39,172.31,9.2461]
[1641182574013,8.7032,172.39,172.31,8.9861]
[1641182575513,8.7032,172.39,172.31,9.2461]
[1641182576714,8.7032,172.39,172.31,8.9861]
[1641182576914,8.7032,172.39,172.31,0.2829]
[1641182577114,8.1,172.38,172.31,0.2829]
[1641182577516,8.7049,172.35,172.31,0.2829]
[1641182578321,9.2049,172.35,172.31,0.2829]
[1641182578521,8.7049,172.35,172.31,0.2829]
[1641182581927,9.2049,172.35,172.31,0.2829]
[1641182582828,8.7049,172.35,172.31,0.2829]
[1641182583246,9.2049,172.35,172.31,0.2829]
[1641182583446,8.7049,172.35,172.31,0.2829]
[1641182583848,9.2049,172.35,172.31,0.2829]
[1641182585850,8.7049,172.35,172.31,0.2829]
[1641182586453,9.2049,172.35,172.31,0.2829]
[1641182598367,8.7049,172.35,172.31,0.2829]
[1641182599567,8.7042,172.36,172.31,0.2829]
[1641182600771,8.7042,172.36,172.31,31.17518968]
[1641182600970,8.7042,172.36,172.31,31.43518968]
[1641182601170,8.7042,172.36,172.31,0.5429]
[1641182601571,8.7042,172.36,172.31,0.2829]
[1641182601801,72.3902,172.4,172.31,7.0259]
[1641182601970,2.8260186,172.43,172.31,7.0259]
[1641182602171,1.5161186,172.43,172.32,31.64837924]
[1641182602370,1.5161186,172.43,172.36,8.7009]
[1641182602572,1.5161186,172.43,172.37,2.56855414]
[1641182603071,1.5161186,172.43,172.37,2.82855414]
[1641182603672,1.5161186,172.43,172.37,11.52915414]
[1641182604072,8.7004,172.44,172.37,11.52915414]
[1641182605776,8.7004,172.44,172.38,0.2829]
[1641182608875,9.2004,172.44,172.38,0.2829]
[1641182609475,8.7004,172.44,172.35,0.2829]
[1641182609674,8.7004,172.44,172.35,2.77602705]
[1641182610075,8.7004,172.44,172.35,3.03602705]
[1641182610478,9.2004,172.44,172.35,0.5429]
[1641182610876,9.2004,172.44,172.35,0.2829]
[1641182611679,12.0113186,172.44,172.36,2.18711509]
[1641182612079,12.0113186,172.44,172.36,2.44711509]
[1641182612479,12.0113186,172.44,172.37,0.2829]
[1641182612680,20.1113186,172.44,172.37,0.2829]
[1641182615088,8.7033,172.4,172.37,0.2829]
[1641182615488,8.7033,172.4,172.38,0.5]
[1641182615695,14.26769994,172.4,172.35,2.94514453]
[1641182618822,14.26769994,172.4,172.36,0.2829]
[1641182619016,1.5161186,172.44,172.4,14.26769994]
[1641182619214,1.5161186,172.44,172.4,21.72769994]
[1641182619414,1.5161186,172.44,172.41,2.4682222]
[1641182619615,1.5161186,172.44,172.42,0.5]
[1641182620614,78.3741186,172.48,172.42,0.5]
[1641182621617,78.3741186,172.48,172.43,0.2829]
[1641182621818,76.858,172.48,172.43,0.2829]
[1641182622019,8.6984,172.49,172.43,0.2829]
[1641182622218,10.2139186,172.51,172.43,0.2829]
[1641182624420,8.6978,172.51,172.43,0.2829]
[1641182627325,8.6978,172.51,172.43,8.9803]
[1641182627524,77.0242186,172.52,172.43,9.2403]
[1641182628129,77.0242186,172.52,172.44,3.00949173]
[1641182628529,77.0242186,172.52,172.45,0.2829]
[1641182628930,75.5081,172.52,172.45,0.2829]
[1641182629430,88.2183,172.53,172.45,8.9793]
[1641182629830,88.2183,172.53,172.45,9.2393]
[1641182631836,88.2183,172.53,172.45,0.5429]
[1641182632037,88.2183,172.53,172.45,0.2829]
[1641182632437,88.2183,172.53,172.44,0.2829]
[1641182633037,89.7344186,172.53,172.44,0.2829]
[1641182635964,90.2344186,172.53,172.44,0.2829]
[1641182636866,88.7183,172.53,172.44,0.2829]
[1641182639173,97.6181,172.53,172.44,0.2829]
[1641182641672,99.1342186,172.53,172.44,0.2829]
[1641182643472,100.4002186,172.53,172.44,0.2829]
[1641182644777,108.5002186,172.53,172.44,0.2829]
[1641182652184,99.6004186,172.53,172.44,0.2829]
[1641182652385,99.1004186,172.53,172.44,4.9089]
[1641182652585,99.1004186,172.53,172.44,5.1689]
[1641182652789,18.3129186,172.53,172.44,5.1689]
[1641182652988,8.1,172.53,172.44,6.59559368]
[1641182653186,8.1,172.53,172.44,5.1689]
[1641182653387,8.1,172.53,172.44,13.866]
[1641182654389,16.7962,172.53,172.44,13.866]
[1641182657491,8.1,172.53,172.44,13.866]
[1641182659193,10.0294,172.55,172.44,13.866]
[1641182659393,76.8932,172.56,172.44,13.866]
[1641182659994,76.8932,172.56,172.45,1.2495]
[1641182660196,85.5877,172.56,172.49,8.6945]
[1641182660397,85.5877,172.56,172.49,11.48233806]
[1641182660606,85.5877,172.56,172.49,11.74233806]
[1641182660896,85.5877,172.56,172.48,5.59]
[1641182661094,8.1,172.55,172.48,5.59]
[1641182661299,8.6982,172.52,172.46,0.2829]
[1641182661494,8.1,172.51,172.46,0.2829]
[1641182661897,38.6128186,172.51,172.46,0.2829]
[1641182662094,39.1128186,172.51,172.46,0.2829]
[1641182662496,8.6996,172.48,172.46,0.2829]
[1641182662697,30.56439994,172.47,172.46,0.2829]
[1641182663298,57.0,172.46,172.4,14.26769994]
[1641182663495,8.7017,172.43,172.4,14.26769994]
[1641182663896,5.56439994,172.42,172.4,14.26769994]
[1641182664098,49.1,172.41,172.4,9.994e-05]
[1641182664501,58.3044,172.41,172.4,9.994e-05]
[1641182668205,57.0,172.4,172.31,0.55502249]
[1641182668503,8.7061,172.36,172.31,0.55502249]
[1641182669326,9.2061,172.36,172.31,0.55502249]
[1641182672930,17.3061,172.36,172.31,0.55502249]
[1641182674232,18.8222186,172.36,172.31,0.55502249]
[1641182676534,17.3061,172.36,172.31,0.55502249]
[1641182677537,16.8061,172.36,172.31,34.68452666]
[1641182678034,16.8061,172.36,172.31,34.94452666]
[1641182678842,16.8061,172.36,172.31,41.83552666]
[1641182680346,16.8061,172.36,172.31,9.64821339]
[1641182680569,16.8061,172.36,172.31,2.75721339]
[1641182680748,17.3061,172.36,172.31,2.75721339]
[1641182681847,17.3061,172.36,172.31,3.01721339]
[1641182682951,17.3061,172.36,172.31,0.81502249]
[1641182683156,17.3061,172.36,172.31,0.55502249]
[1641182684554,18.8222186,172.36,172.31,0.55502249]
[1641182685554,94.7682186,172.36,172.31,0.55502249]
[1641182686663,93.2521,172.36,172.31,0.55502249]
[1641182691085,1.42669368,172.35,172.31,0.55502249]
[1641182691283,8.1,172.34,172.31,0.55502249]
[1641182691484,14.27219994,172.33,172.31,0.13082249]
[1641182691682,15.61489994,172.33,172.31,0.13082249]
[1641182691881,16.11489994,172.33,172.31,0.13082249]
[1641182693384,15.23858594,172.33,172.31,0.13082249]
[1641182703204,14.73858594,172.33,172.31,0.13082249]
[1641182703404,13.39588594,172.33,172.31,7.43282249]
[1641182703605,13.39588594,172.33,172.31,7.69282249]
[1641182703806,8.7051,172.34,172.32,0.5]
[1641182704204,74.7025,172.36,172.32,0.5]
[1641182704408,8.1,172.38,172.32,0.5]
[1641182704807,8.7047,172.35,172.33,2.74110654]
[1641182705007,8.7047,172.35,172.33,0.26]
[1641182705909,8.7047,172.35,172.32,2.55859307]
[1641182706112,8.6,172.38,172.32,2.81859307]
[1641182706314,8.7042,172.36,172.32,2.81859307]
[1641182714346,8.7042,172.36,172.31,0.13082249]
[1641182715443,8.7042,172.36,172.32,2.60989735]
[1641182715844,8.7042,172.36,172.32,2.86989735]
[1641182716645,8.7042,172.36,172.32,0.26]
[1641182716846,8.7042,172.36,172.31,0.13082249]
[1641182717247,17.3042,172.36,172.31,0.13082249]
[1641182717647,17.3042,172.36,172.32,2.83457417]
[1641182717848,18.3203186,172.36,172.32,2.83457417]
[1641182718093,10.2203186,172.36,172.32,2.83457417]
[1641182718350,1.5161186,172.36,172.32,2.83457417]
[1641182718548,8.7035,172.38,172.32,3.09457417]
[1641182721051,9.2035,172.38,172.32,3.09457417]
[1641182721253,8.7035,172.38,172.32,3.09457417]
[1641182722151,9.2035,172.38,172.32,3.09457417]
[1641182722354,8.7035,172.38,172.32,3.09457417]
[1641182723852,9.2035,172.38,172.32,3.09457417]
[1641182725854,8.7035,172.38,172.32,3.09457417]
[1641182731963,9.2035,172.38,172.32,3.09457417]
[1641182732164,8.7035,172.38,172.32,3.09457417]
[1641182736289,8.7035,172.38,172.32,11.79767417]
[1641182740794,8.7035,172.38,172.32,8.9631]
[1641182742396,9.4379,172.41,172.33,2.86005349]
[1641182742597,16.802,172.41,172.33,11.82245349]
[1641182744202,339.63776671,172.43,172.34,1.42669368]
[1641182744401,8.1,172.46,172.38,8.6996]
[1641182744601,8.1,172.46,172.39,2.60567891]
[1641182745004,8.1,172.46,172.39,2.86567891]
[1641182745404,16.7997,172.46,172.39,2.86567891]
[1641182746004,16.7997,172.46,172.39,11.56527891]
[1641182746406,16.7997,172.46,172.39,8.9596]
[1641182746606,16.7997,172.46,172.39,0.26]
[1641182746811,17.2997,172.46,172.39,0.26]
[1641182747006,17.2997,172.46,172.36,1.5447]
[1641182747212,16.7997,172.46,172.36,10.2458]
[1641182747808,16.7997,172.46,172.37,3.05279314]
[1641182748008,16.7997,172.46,172.37,3.31279314]
[1641182748410,16.7997,172.46,172.37,10.09579314]
[1641182748812,18.3158186,172.46,172.37,10.09579314]
[1641182749309,18.3158186,172.46,172.37,18.79629314]
[1641182751513,18.8158186,172.46,172.37,18.79629314]
[1641182751915,18.8158186,172.46,172.44,0.13082249]
[1641182752215,44.26469994,172.45,172.44,0.13082249]
[1641182761550,14.26469994,172.45,172.44,0.13082249]
[1641182762555,5.56439994,172.45,172.44,0.13082249]
[1641182762755,151.3377186,172.47,172.44,0.13082249]
[1641182762756,149.8216,172.47,172.44,0.63082249]
[1641182762952,1.5161186,172.48,172.44,5.76382249]
[1641182763352,1.5161186,172.48,172.44,6.02382249]
[1641182763553,9.6161186,172.49,172.44,6.02382249]
[1641182764253,18.3142186,172.49,172.45,2.87927443]
[1641182764455,16.7981,172.49,172.45,2.87927443]
[1641182764657,8.1,172.49,172.45,3.13927443]
[1641182765055,1.5161186,172.5,172.45,3.13927443]
[1641182765657,1.5161186,172.51,172.45,3.13927443]
[1641182766261,1.5161186,172.52,172.45,3.13927443]
[1641182766459,8.6967,172.51,172.45,11.83597443]
[1641182767059,1.5161186,172.52,172.45,11.83597443]
[1641182767662,163.5497,172.53,172.45,11.83597443]
[1641182767663,1.5161186,172.53,172.45,11.83597443]
[1641182768263,8.1,172.56,172.45,11.83597443]
[1641182768264,9.6161186,172.56,172.45,11.83597443]
[1641182768461,9.6161186,172.56,172.46,1.2582]
[1641182768661,18.3105186,172.56,172.5,2.87398712]
[1641182769061,18.3105186,172.56,172.5,3.13398712]
[1641182769264,16.7944,172.56,172.5,3.13398712]
[1641182769863,18.3105186,172.56,172.49,8.6944]
[1641182770064,18.8105186,172.56,172.44,0.13082249]
[1641182770862,8.6971,172.51,172.44,2.73021802]
[1641182771267,8.6971,172.51,172.44,2.99021802]
[1641182771963,8.6971,172.51,172.44,0.39082249]
[1641182772163,16.7971,172.51,172.39,1.3009]
[1641182772365,17.2971,172.51,172.39,1.3009]
[1641182772563,17.2971,172.51,172.38,3.28002278]
[1641182773167,17.2971,172.51,172.39,28.15267811]
[1641182773368,8.699,172.47,172.39,28.15267811]
[1641182773568,16.799,172.47,172.39,28.41267811]
[1641182773971,8.1,172.47,172.39,28.41267811]
[1641182774371,8.1,172.47,172.43,8.6977]
[1641182774570,8.1,172.47,172.43,8.9577]
[1641182775072,8.1,172.47,172.43,0.26]
[1641182775474,8.1,172.47,172.42,0.26]
[1641182776271,8.1,172.47,172.36,3.54002278]
[1641182776472,8.1,172.47,172.4,2.84793185]
[1641182776674,8.1,172.47,172.4,26.25881878]
[1641182776876,8.1,172.47,172.4,26.51881878]
[1641182777476,16.7991,172.47,172.4,26.51881878]
[1641182778374,16.7991,172.47,172.4,35.21791878]
[1641182779576,8.1,172.47,172.4,35.21791878]
[1641182782480,16.7989,172.47,172.4,35.21791878]
[1641182784385,8.1,172.47,172.4,35.21791878]
[1641182791912,8.6974,172.5,172.4,41.00991878]
[1641182793316,8.6974,172.5,172.4,42.33901878]
[1641182793514,94.99,172.51,172.4,42.33901878]
[1641182797120,94.99,172.51,172.4,42.07901878]
[1641182797320,95.49,172.51,172.4,36.28701878]
[1641182798121,94.99,172.51,172.4,36.28701878]
[1641182798324,96.5061186,172.51,172.4,36.28701878]
[1641182798529,96.5061186,172.51,172.4,36.54701878]
[1641182798725,96.5061186,172.51,172.4,10.0282]
[1641182798923,97.0061186,172.51,172.4,1.3291]
[1641182799122,97.0061186,172.51,172.38,8.6998]
[1641182799723,1.5161186,172.49,172.39,2.45940531]
[1641182799927,8.7001,172.45,172.39,2.45940531]
[1641182800322,8.7001,172.45,172.38,8.6998]
[1641182800524,8.7001,172.45,172.35,3.28002278]
[1641182800927,9.2001,172.45,172.35,3.28002278]
[1641182801126,9.06927751,172.45,172.35,3.28002278]
[1641182801527,9.06927751,172.45,172.36,2.46298392]
[1641182801725,1.2464,172.44,172.36,2.46298392]
[1641182801926,8.7017,172.42,172.36,2.72298392]
[1641182808030,8.7017,172.42,172.36,11.42438392]
[1641182808233,8.7008,172.43,172.37,29.35221848]
[1641182808432,77.7763,172.45,172.37,35.77921848]
[1641182808634,77.7763,172.45,172.37,36.03921848]
[1641182809533,8.7002,172.44,172.39,2.44895753]
[1641182809933,8.7002,172.44,172.39,2.70895753]
[1641182811137,77.7763,172.45,172.39,2.70895753]
[1641182811337,86.476,172.45,172.39,11.40865753]
[1641182811537,77.7763,172.45,172.39,11.40865753]
[1641182815956,9.9969,172.46,172.39,11.40865753]
[1641182816757,8.6992,172.46,172.39,11.40865753]
[1641182819463,17.5029,172.46,172.39,11.40865753]
[1641182820365,8.8037,172.46,172.39,11.40865753]
[1641182821367,8.8037,172.46,172.42,0.55701877]
[1641182821765,8.8037,172.46,172.43,8.6977]
[1641182821964,8.8037,172.46,172.43,8.9577]
[1641182822165,78.9319,172.48,172.43,8.9577]
[1641182828875,88.9357,172.5,172.43,8.9577]
[1641182838408,80.8357,172.5,172.44,27.03438643]
[1641182838609,8.6965,172.52,172.45,2.49379575]
[1641182839008,8.6965,172.52,172.45,2.75379575]
[1641182839208,73.4585,172.53,172.45,2.75379575]
[1641182839610,73.4585,172.53,172.49,8.6948]
[1641182839910,8.1,172.54,172.49,14.4298]
[1641182840108,8.1,172.54,172.49,14.6898]
[1641182842009,8.1,172.54,172.49,0.26]
[1641182842411,8.1,172.54,172.48,8.9553]
[1641182842610,16.7955,172.54,172.48,8.9553]
[1641182842811,16.7955,172.54,172.48,0.26]
[1641182843009,16.7955,172.54,172.45,2.75379575]
[1641182844010,17.2955,172.54,172.45,2.75379575]
[1641182844410,17.2955,172.54,172.46,8.6958]
[1641182844710,17.2955,172.54,172.46,8.9558]
[1641182851821,17.2955,172.54,172.52,0.55701877]
[1641182852021,33.56439994,172.53,172.52,0.55701877]
[1641182852222,42.26039994,172.53,172.52,0.55701877]